bitfinex/quotes_SOLUSD_20241210
["timestamp","ask_amount","ask_price","bid_price","bid_amount"]
[1733848682967,0.55102192,205.99,205.89,0.7975]
[1733848682968,0.33148631,205.98,205.89,0.7975]
[1733848683264,0.42553192,205.97,205.89,0.7975]
[1733848683459,0.20599631,205.96,205.89,0.7975]
[1733848683785,0.20599631,205.96,205.86,13.33134212]
[1733848684092,0.12549,205.94,205.88,13.33134212]
[1733848684257,0.08050631,205.93,205.88,13.33134212]
[1733848684590,0.50603823,205.93,205.9,13.33134212]
[1733848685081,0.50603823,205.93,205.88,13.33134212]
[1733848685252,20.50603823,205.93,205.88,13.33134212]
[1733848685453,0.25098,205.92,205.86,13.33134212]
[1733848685888,0.50603823,205.91,205.9,13.33134212]
[1733848686554,7.03074879,206.08,206.05,13.33134212]
[1733848686760,6.60767315,206.13,206.09,13.33134212]
[1733848686965,0.88160038,206.13,206.11,13.33134212]
[1733848687599,13.81893693,206.3,206.24,13.33134212]
[1733848687816,0.82934068,206.29,206.28,13.33134212]
[1733848688096,0.82934068,206.29,206.24,13.33134212]
[1733848688298,7.86008947,206.29,206.21,13.33134212]
[1733848688597,7.86008947,206.29,206.13,13.33134212]
[1733848688598,13.11054972,206.28,206.13,13.33134212]
[1733848688907,13.11054972,206.28,206.05,7.6079]
[1733848688908,0.12549,206.22,206.07,13.33134212]
[1733848689065,15.12549,206.19,206.01,13.33134212]
[1733848689270,0.12549,206.14,206.01,13.33134212]
[1733848689500,0.12549,206.14,205.97,7.6079]
[1733848689501,4.85561695,206.14,206.07,13.33134212]
[1733848689797,15.0,206.2,205.97,8.33602277]
[1733848689798,20.0,206.1,206.09,13.33134212]
[1733848690785,0.12549,206.14,206.07,13.33134212]
[1733848690963,6.21335335,206.14,206.04,13.33134212]
[1733848691170,0.12549,206.1,206.04,13.33134212]
[1733848691387,20.0,206.1,206.06,13.33134212]
[1733848691771,20.0,206.1,206.08,13.33134212]
[1733848691966,7.03074879,206.13,206.1,13.33134212]
[1733848692179,7.03074879,206.16,206.1,13.33134212]
[1733848692699,7.03074879,206.16,206.12,13.33134212]
[1733848693009,14.16094267,206.27,206.14,13.33134212]
[1733848693196,11.43607378,206.24,206.19,13.33134212]
[1733848693397,0.82960067,206.23,206.22,13.33134212]
[1733848693906,0.82960067,206.23,206.16,13.33134212]
[1733848694115,1.66865788,206.21,206.06,13.33134212]
[1733848694275,0.25098,206.17,206.04,13.33134212]
[1733848694471,0.12549,206.15,206.04,13.33134212]
[1733848694667,0.12549,206.13,206.04,13.33134212]
[1733848694893,0.12549,206.11,206.04,13.33134212]
[1733848695100,0.25098,206.11,206.02,13.33134212]
[1733848695282,20.0,206.08,206.04,13.33134212]
[1733848695783,20.25098,206.07,205.98,13.33134212]
[1733848695973,25.86860333,206.07,205.96,13.33134212]
[1733848696172,0.12549,206.03,205.97,13.33134212]
[1733848696405,0.25098,206.03,205.93,13.33134212]
[1733848696576,4.70047344,206.02,205.99,13.33134212]
[1733848696772,20.0,206.03,206.01,13.33134212]
[1733848696973,0.82985806,206.17,206.12,13.33134212]
[1733848697202,0.82985806,206.17,206.16,13.33134212]
[1733848697376,0.82985806,206.17,206.06,4.8722]
[1733848697585,12.1883828,206.16,205.95,13.1917]
[1733848697775,5.23518305,206.17,205.98,15.0]
[1733848697976,0.82985806,206.17,205.99,0.7277563]
[1733848698576,0.82985806,206.17,205.99,15.7277563]
[1733848699104,0.25098,206.16,205.99,0.7277563]
[1733848699287,1.08109289,206.16,206.0,5.0]
[1733848699478,1.77011124,206.16,206.0,5.0]
[1733848699679,1.77011124,206.16,206.01,59.31453632]
[1733848699984,3.65010794,206.16,206.0,5.0]
[1733848700298,8.45834657,206.15,206.0,5.0]
[1733848700499,0.83011289,206.16,206.01,0.72797662]
[1733848700999,0.12549,206.14,206.0,5.0]
[1733848701204,20.0,206.12,206.0,5.0]
[1733848701387,0.12549,206.11,206.0,5.0]
[1733848701587,0.25098,206.07,206.0,5.0]
[1733848701912,20.0,206.08,205.86,4.8722]
[1733848701913,0.12549,206.02,205.86,4.8722]
[1733848702111,6.08786335,206.01,205.86,4.8722]
[1733848702295,20.0,205.98,205.86,4.8722]
[1733848702687,0.12549,205.95,205.8,8.3195]
[1733848702887,0.25098,205.97,205.8,8.3195]
[1733848702888,0.25098,205.93,205.8,8.3195]
[1733848703612,20.0,205.95,205.8,9.04813503]
[1733848703973,0.12549,205.94,205.8,9.04813503]
[1733848704279,20.0,206.06,205.83,15.0]
[1733848704477,6.07980093,206.05,205.85,15.0]
[1733848704680,6.07980093,206.05,205.9,43.58670281]
[1733848704906,4.38795851,206.11,205.92,43.58670281]
[1733848705074,0.25098,206.09,205.86,43.58670281]
[1733848705277,6.07980093,206.08,205.88,73.58670281]
[1733848705491,6.07980093,206.08,205.89,0.72813095]
[1733848705787,0.25098,206.07,205.88,0.72824566]
[1733848705988,20.0,206.05,205.88,44.31494847]
[1733848706311,20.0,206.05,205.88,0.72824566]
[1733848706478,0.12549,206.04,205.88,0.72824566]
[1733848706681,7.03306091,206.08,205.92,43.58670281]
[1733848706908,6.07980093,206.13,205.93,4.8722]
[1733848707111,6.07980093,206.13,205.98,43.58670281]
[1733848707296,13.81893693,206.2,206.02,43.58670281]
[1733848707490,13.81893693,206.2,206.03,0.72766949]
[1733848707697,13.81893693,206.2,206.03,15.72766949]
[1733848707882,13.81893693,206.2,206.06,43.58670281]
[1733848708084,6.07980093,206.23,206.07,0.72754765]
[1733848708415,6.07980093,206.23,206.05,0.7276145]
[1733848708581,6.07980093,206.23,206.06,58.58670281]
[1733848708782,13.331342,206.31,206.09,15.0]
[1733848708995,13.331342,206.31,206.1,0.72741261]
[1733848709200,15.0,206.23,205.99,4.981]
[1733848709407,25.27016734,206.15,205.92,0.72781834]
[1733848709597,25.27016734,206.15,205.83,30.40040972]
[1733848709598,15.0,206.12,205.91,0.72809304]
[1733848709902,15.0,206.12,205.82,48.15131586]
[1733848709903,20.0,206.03,205.82,4.981]
[1733848710090,20.0,206.03,205.78,0.5846841]
[1733848710091,20.0,205.97,205.78,0.5846841]
[1733848710292,0.12549,205.92,205.78,0.5846841]
[1733848711892,20.12549,205.85,205.63,0.72911185]
[1733848712092,0.25098,205.82,205.59,29.08515793]
[1733848712290,20.12549,205.8,205.59,14.08515793]
[1733848712499,0.12549,205.77,205.59,14.08515793]
[1733848712702,0.12549,205.75,205.6,0.72932091]
[1733848712906,0.12549,205.75,205.59,14.08515793]
[1733848713106,0.25098,205.75,205.59,14.08515793]
[1733848713319,25.23802333,205.76,205.58,14.08515793]
[1733848713524,0.12549,205.75,205.58,14.08515793]
[1733848713999,6.20529093,205.75,205.58,14.08515793]
[1733848714201,20.0,205.72,205.58,14.81455216]
[1733848714407,17.9372,205.95,205.66,43.58670281]
[1733848714707,71.72559833,206.01,205.72,15.0]
[1733848714708,7.7336,205.97,205.72,15.0]
[1733848714907,7.7336,205.97,205.75,15.0]
[1733848715218,12.58501266,205.96,205.82,15.0]
[1733848715395,27.63787386,205.99,205.81,44.31504104]
[1733848715595,27.63787386,205.99,205.85,15.0]
[1733848715795,27.63787386,205.99,205.88,15.0]
[1733848715991,27.63787386,205.99,205.95,15.0]
[1733848716310,27.63787386,205.99,205.98,15.0]
[1733848716505,22.34537386,205.99,205.98,15.0]
[1733848716693,46.10739938,206.0,205.99,39.153354]
[1733848716903,46.05795864,206.06,206.05,30.0]
[1733848717128,96.73255854,206.08,206.05,117.17340562]
[1733848717326,37.60369885,206.43,206.11,30.0]
[1733848717327,24.57495818,206.28,206.11,30.0]
[1733848717514,0.5846841,206.29,206.16,15.0]
[1733848717705,0.5846841,206.29,206.19,43.58670281]
[1733848718112,0.5846841,206.29,206.19,58.58670281]
[1733848718316,0.5846841,206.29,206.27,15.0]
[1733848718632,0.5846841,206.49,206.27,15.0]
[1733848718633,0.5846841,206.49,206.39,15.0]
[1733848718806,0.5846841,206.49,206.28,87.37944861]
[1733848718807,0.5846841,206.49,206.43,24.51715154]
[1733848719006,15.0,206.71,206.43,24.51715154]
[1733848719007,15.0,206.71,206.46,24.24455485]
[1733848719225,15.1827929,206.71,206.66,11.14406013]
[1733848719425,15.1827929,206.71,206.47,6.62551866]
[1733848719426,15.0,206.61,206.48,87.23180912]
[1733848719802,30.0,206.59,206.48,87.23180912]
[1733848720008,4.93826907,206.58,206.48,87.23180912]
[1733848720574,5.1410556,206.66,206.48,87.23180912]
[1733848720833,15.0,206.63,206.48,87.23180912]
[1733848721013,19.398171,206.64,206.48,87.23180912]
[1733848721333,19.397382,206.65,206.5,0.14119283]
[1733848721508,7.7336,206.64,206.5,0.14119283]
[1733848721835,7.7336,206.77,206.63,0.14119283]
[1733848722023,19.388382,206.75,206.59,0.14119283]
[1733848722408,7.7336,206.77,206.63,0.14119283]
[1733848722623,15.0,206.73,206.57,0.14119283]
[1733848722828,1.96143615,206.73,206.57,0.14119283]
[1733848723108,2.91130895,206.65,206.61,0.14119283]
[1733848723331,7.7336,206.77,206.65,0.14119283]
[1733848723503,2.92932843,206.66,206.62,0.14119283]
[1733848723826,2.92932843,206.66,206.63,0.14119283]
[1733848724148,2.92932843,206.66,206.65,0.14119283]
[1733848724580,7.7336,206.77,206.68,0.14119283]
[1733848724866,2.87207298,206.72,206.7,0.14119283]
[1733848725239,0.6550072,206.81,206.7,0.14119283]
[1733848725577,2.83923102,206.77,206.7,0.14119283]
[1733848726271,2.83923102,206.77,206.68,0.14119283]
[1733848726437,2.83923102,206.77,206.7,0.14119283]
[1733848726765,2.83923102,206.77,206.58,58.58670281]
[1733848726766,2.83923102,206.77,206.67,0.14119283]
[1733848727061,2.83923102,206.77,206.7,0.14119283]
[1733848727964,2.93968309,206.79,206.7,0.14119283]
[1733848728571,2.93968309,206.79,206.7,0.8667368]
[1733848728749,0.6550072,206.81,206.7,0.8667368]
[1733848729150,0.6550072,206.81,206.8,0.14119283]
[1733848729348,0.6550072,206.81,206.7,0.72554397]
[1733848729549,0.6550072,206.81,206.66,43.58670281]
[1733848729750,0.6550072,206.81,206.68,43.58670281]
[1733848729949,0.6550072,206.81,206.7,43.58670281]
[1733848730256,0.12549,206.8,206.71,0.72515419]
[1733848730458,0.6550072,206.81,206.71,0.72515419]
[1733848730837,0.42553191,206.8,206.72,73.58670281]
[1733848731041,0.42553191,206.8,206.67,0.72507743]
[1733848731269,0.12549,206.79,206.67,0.72507743]
[1733848731461,0.25098,206.79,206.67,0.72507743]
[1733848731666,0.25098,206.79,206.65,15.0]
[1733848731667,0.25098,206.77,206.65,15.0]
[1733848731888,7.98458,206.77,206.55,0.72567086]
[1733848732047,0.12549,206.75,206.55,0.72592304]
[1733848732253,0.12549,206.75,206.6,43.58670281]
[1733848732580,20.0,206.68,206.61,0.72555987]
[1733848732756,23.776884,206.67,206.55,0.72591173]
[1733848732954,23.902374,206.63,206.5,43.58670281]
[1733848733156,23.902374,206.63,206.41,30.0]
[1733848733157,0.12549,206.62,206.51,0.72594118]
[1733848733356,0.12549,206.61,206.51,0.72594118]
[1733848733561,23.902374,206.57,206.45,0.72608176]
[1733848733769,23.776884,206.57,206.45,0.72608176]
[1733848733955,0.42553191,206.56,206.45,0.72608176]
[1733848734776,0.42553191,206.56,206.47,15.0]
[1733848734990,0.42553191,206.56,206.48,44.31275978]
[1733848735157,1.9138476,206.69,206.48,44.31275978]
[1733848735158,23.902374,206.68,206.5,43.58670281]
[1733848735492,0.12549,206.68,206.53,15.0]
[1733848735663,0.12549,206.68,206.54,0.72584814]
[1733848735854,2.83851878,206.64,206.54,0.72584814]
[1733848736057,0.12549,206.63,206.54,0.72584814]
[1733848736258,0.25098,206.63,206.52,0.72593939]
[1733848736671,0.12549,206.63,206.52,0.72593939]
[1733848736995,2.83851878,206.64,206.53,15.0]
[1733848737159,5.278,206.72,206.56,15.0]
[1733848737482,7.7336,206.77,206.57,0.72569272]
[1733848737670,2.92046619,206.72,206.58,58.58670281]
[1733848737876,2.92046619,206.72,206.59,0.72565943]
[1733848738061,2.92046619,206.72,206.61,15.0]
[1733848738262,7.7336,206.77,206.62,44.31225093]
[1733848738485,7.7336,206.77,206.63,15.0]
[1733848738660,2.83851878,206.73,206.59,0.72546305]
[1733848738865,0.25098,206.72,206.59,0.72546305]
[1733848739063,0.25098,206.72,206.55,0.72581285]
[1733848739367,0.25098,206.72,206.43,0.72603085]
[1733848739368,15.0,206.66,206.43,0.72603085]
[1733848739569,20.0,206.62,206.42,7.7336]
[1733848739787,20.0,206.62,206.31,15.0]
[1733848739788,0.25098,206.55,206.32,0.72637264]
[1733848739991,23.902374,206.51,206.36,58.58670281]
[1733848740161,23.902374,206.51,206.37,0.72643554]
[1733848740363,23.776884,206.51,206.38,43.58670281]
[1733848740563,23.776884,206.51,206.39,15.72640785]
[1733848740993,0.12549,206.5,206.39,0.72640785]
[1733848741395,24.153354,206.47,206.37,0.72636574]
[1733848741596,23.776884,206.47,206.38,58.58670281]
[1733848741764,0.20666299,206.47,206.39,0.72637868]
[1733848741966,0.12549,206.54,206.39,0.72637868]
[1733848742473,0.12549,206.54,206.39,15.72637868]
[1733848742672,0.12549,206.54,206.39,0.72637868]
[1733848743138,15.25098,206.52,206.28,0.726543]
[1733848743270,15.25098,206.52,206.25,0.72686946]
[1733848743271,0.12549,206.4,206.25,0.72686946]
[1733848743478,0.12549,206.4,206.23,0.72695511]
[1733848744200,0.12549,206.4,206.19,0.72706421]
[1733848744367,20.12549,206.4,206.19,0.72706421]
[1733848744567,20.12549,206.4,206.2,58.58670281]
[1733848744568,2.86632228,206.33,206.2,58.58670281]
[1733848744895,0.12549,206.4,206.24,15.0]
[1733848745065,0.12549,206.4,206.25,0.72680247]
[1733848745268,0.12549,206.4,206.26,15.0]
[1733848745487,7.1514,206.45,206.27,0.72674597]
[1733848745690,4.4252,206.53,206.3,58.58670281]
[1733848745992,0.25098,206.42,206.25,0.72656435]
[1733848746166,0.25098,206.42,206.21,0.72682882]
[1733848746777,0.25098,206.42,206.15,43.58670281]
[1733848746778,0.12549,206.33,206.15,15.0]
[1733848746989,15.0,206.36,206.2,43.58670281]
[1733848747291,20.0,206.36,206.22,43.58670281]
[1733848747500,0.12549,206.34,206.23,0.7268426]
[1733848747664,0.12549,206.35,206.23,0.7268426]
[1733848748196,15.25098,206.36,206.23,0.7268426]
[1733848748367,15.0,206.41,206.26,43.58670281]
[1733848748573,2.90319172,206.43,206.28,43.58670281]
[1733848748880,0.25098,206.42,206.29,0.72663656]
[1733848750669,6.34180382,206.53,206.33,0.72639504]
[1733848750861,7.06863264,206.53,206.33,0.72639504]
[1733848751067,15.0,206.45,206.33,0.72639504]
[1733848751378,2.83929018,206.49,206.3,43.58670281]
[1733848751379,0.72682882,206.44,206.3,0.72655165]
[1733848751719,0.72682882,206.58,206.39,43.58670281]
[1733848751867,0.72682882,206.58,206.4,0.72635997]
[1733848752067,0.72682882,206.58,206.4,44.31306278]
[1733848752263,15.72682882,206.61,206.42,43.58670281]
[1733848752488,7.1514,206.62,206.46,43.58670281]
[1733848752673,0.72682882,206.71,206.43,0.72613]
[1733848752674,21.8518,206.71,206.5,43.58670281]
[1733848752862,0.72682882,206.7,206.54,43.58670281]
[1733848753066,0.72682882,206.7,206.45,37.4047]
[1733848753067,15.0,206.76,206.56,43.58670281]
[1733848753282,0.72682882,206.75,206.6,43.58670281]
[1733848753484,0.6550072,206.81,206.67,43.58670281]
[1733848753691,0.6550072,206.81,206.69,43.58670281]
[1733848753970,0.6550072,206.81,206.7,0.72528277]
[1733848754182,15.0,206.8,206.7,0.72528277]
[1733848754383,0.6550072,206.81,206.67,43.58670281]
[1733848754587,0.6550072,206.81,206.71,0.72541098]
[1733848754867,0.6550072,206.81,206.71,0.72520204]
[1733848755067,0.6550072,206.81,206.71,44.31190485]
[1733848755301,0.6550072,206.81,206.73,43.58670281]
[1733848755481,0.6550072,206.81,206.74,0.72508104]
[1733848755797,0.6550072,206.81,206.75,43.58670281]
[1733848755972,0.6550072,206.81,206.68,30.0]
[1733848755973,0.6550072,206.81,206.76,0.72511524]
[1733848756995,0.6550072,206.81,206.77,0.72511216]
[1733848757302,0.6550072,206.81,206.67,0.72511422]
[1733848757473,0.6550072,206.81,206.67,44.31181703]
[1733848757674,0.6550072,206.81,206.69,43.58670281]
[1733848757880,0.6550072,206.81,206.7,0.7251298]
[1733848758282,0.6550072,206.81,206.71,43.58670281]
[1733848758600,0.6550072,206.81,206.73,43.58670281]
[1733848758806,0.6550072,206.81,206.75,43.58670281]
[1733848759104,0.6550072,206.81,206.76,0.7250685]
[1733848759313,0.6550072,206.81,206.72,0.7250685]
[1733848759913,15.0,206.78,206.64,0.72522674]
[1733848760200,15.0,206.77,206.64,0.72522674]
[1733848760410,15.0,206.73,206.64,0.72522674]
[1733848760698,15.0,206.76,206.64,0.72522674]
[1733848761000,15.0,206.69,206.57,0.72557531]
[1733848761293,15.0,206.65,206.56,0.72576374]
[1733848761677,15.0,206.65,206.53,0.72585963]
[1733848761876,0.12549,206.62,206.53,0.72585963]
[1733848762094,15.0,206.6,206.52,2.6865184]
[1733848762301,0.12549,206.57,206.52,2.6865184]
[1733848762606,15.0,206.53,206.52,2.6865184]
[1733848762916,15.0,206.53,206.4,0.72619165]
[1733848762917,20.0,206.5,206.4,0.72619165]
[1733848763084,20.0,206.5,206.32,43.58670281]
[1733848763085,0.12549,206.44,206.34,2.67062411]
[1733848763271,20.0,206.45,206.35,0.7266027]
[1733848763481,15.0,206.44,206.31,0.72654716]
[1733848763674,15.0,206.44,206.29,2.67062411]
[1733848763675,15.0,206.48,206.39,4.04352078]
[1733848763991,35.0,206.5,206.4,1.61249383]
[1733848764197,0.12549,206.44,206.4,0.88593576]
[1733848764382,15.0,206.45,206.4,0.88593576]
[1733848764586,0.72682882,206.49,206.4,0.88593576]
[1733848764587,15.0,206.49,206.4,0.88593576]
[1733848765004,15.0,206.52,206.4,0.88593576]
[1733848765199,20.0,206.51,206.41,0.72637164]
[1733848765505,0.12549,206.48,206.37,0.7263326]
[1733848765878,15.0,206.52,206.37,0.7263326]
[1733848766086,15.0,206.59,206.42,43.58670281]
[1733848766278,15.72682882,206.64,206.46,43.58670281]
[1733848766506,2.8902887,206.62,206.47,0.72599814]
[1733848766715,2.8902887,206.62,206.38,27.1135]
[1733848766716,0.25098,206.53,206.41,0.72603559]
[1733848766885,0.12549,206.49,206.38,3.46135771]
[1733848767404,0.12549,206.49,206.38,0.72635816]
[1733848767613,15.0,206.52,206.38,0.72635816]
[1733848767780,0.72682882,206.51,206.38,0.72635816]
[1733848767991,0.12549,206.5,206.39,0.72645758]
[1733848768293,15.0,206.56,206.39,0.72645758]
[1733848768496,15.0,206.59,206.4,43.58670281]
[1733848768693,15.0,206.57,206.42,43.58670281]
[1733848768882,15.0,206.57,206.43,0.72620425]
[1733848769310,15.0,206.55,206.43,0.72620425]
[1733848769684,15.0,206.53,206.43,0.72620425]
[1733848770088,15.0,206.55,206.43,0.72620425]
[1733848770284,15.0,206.51,206.39,0.72620299]
[1733848770600,15.0,206.49,206.39,0.72620299]
[1733848770983,15.0,206.55,206.4,43.58670281]
[1733848771186,15.0,206.58,206.44,43.58670281]
[1733848771404,15.0,206.56,206.45,0.72608614]
[1733848771817,0.25098,206.51,206.41,0.72623378]
[1733848772113,15.0,206.41,206.36,2.73499955]
[1733848772298,0.12549,206.42,206.36,2.73499955]
[1733848772500,15.0,206.43,206.32,0.72644571]
[1733848773021,15.0,206.39,206.32,0.72644571]
[1733848773231,15.0,206.41,206.29,0.72660416]
[1733848773513,15.0,206.45,206.3,43.58670281]
[1733848773717,15.0,206.45,206.31,0.72652264]
[1733848773916,15.0,206.46,206.34,43.58670281]
[1733848774083,15.0,206.49,206.35,0.72648795]
[1733848774284,2.96142763,206.51,206.35,44.31319076]
[1733848774502,0.72682882,206.61,206.41,43.58670281]
[1733848774503,15.0,206.55,206.41,43.58670281]
[1733848774699,15.0,206.55,206.42,0.72623233]
[1733848774700,2.88958958,206.55,206.42,0.72623233]
[1733848775313,15.0,206.62,206.47,43.58670281]
[1733848775496,15.0,206.6,206.49,43.58670281]
[1733848775815,2.89278828,206.63,206.5,0.72589999]
[1733848776112,15.0,206.53,206.48,0.72599792]
[1733848776318,15.0,206.53,206.42,0.72599792]
[1733848776492,15.0,206.55,206.42,0.72599792]
[1733848777002,15.0,206.59,206.42,44.31270073]
[1733848777199,2.89278828,206.63,206.46,43.58670281]
[1733848777396,15.0,206.58,206.47,0.72596785]
[1733848777800,0.12549,206.57,206.47,0.72596785]
[1733848778001,15.0,206.52,206.44,0.7262389]
[1733848778193,15.0,206.55,206.45,0.72639226]
[1733848778586,15.0,206.58,206.45,0.72639226]
[1733848779111,0.12549,206.57,206.45,0.72639226]
[1733848779410,15.0,206.6,206.46,0.7260961]
[1733848779820,15.0,206.56,206.46,0.7260961]
[1733848779991,15.0,206.59,206.46,0.7260961]
[1733848780192,15.0,206.58,206.46,0.7260961]
[1733848780717,15.0,206.56,206.46,0.7260961]
[1733848781022,0.25098,206.55,206.47,0.72612232]
[1733848781201,15.0,206.53,206.44,0.72612232]
[1733848781401,15.0,206.55,206.44,0.72612232]
[1733848782503,15.0,206.53,206.44,0.72612232]
[1733848782705,15.0,206.48,206.4,0.72629717]
[1733848782896,15.0,206.44,206.31,44.31309044]
[1733848783100,15.0,206.44,206.31,0.72638763]
[1733848783311,15.0,206.44,206.31,44.31309044]
[1733848784024,15.0,206.46,206.33,43.58670281]
[1733848784325,15.0,206.46,206.34,0.72644623]
[1733848784624,15.0,206.44,206.34,312.72644623]
[1733848784916,15.0,206.48,206.35,43.58670281]
[1733848785222,15.0,206.48,206.34,312.0]
[1733848785223,15.0,206.48,206.36,0.72643361]
[1733848785598,15.0,206.46,206.36,0.72643361]
[1733848785797,15.0,206.44,206.36,0.72643361]
[1733848786009,15.0,206.44,206.35,0.72641063]
[1733848786212,15.0,206.44,206.37,0.72641063]
[1733848786416,15.0,206.36,206.3,0.7264241]
[1733848786727,15.0,206.39,206.26,0.72667411]
[1733848786910,9.31272882,206.48,206.27,43.58670281]
[1733848786911,15.0,206.38,206.27,43.58670281]
[1733848787232,15.0,206.4,206.28,0.72668433]
[1733848787523,0.12549,206.36,206.28,0.72668433]
[1733848787831,11.27461603,206.48,206.21,12.1231]
[1733848787832,15.0,206.4,206.29,0.7269039]
[1733848788167,15.0,206.41,206.29,0.7269039]
[1733848788703,15.0,206.36,206.29,0.7269039]
[1733848788931,15.0,206.36,206.25,312.0]
[1733848789111,15.0,206.33,206.26,0.72682086]
[1733848789307,15.0,206.33,206.19,29.4284]
[1733848789308,15.0,206.3,206.15,30.0]
[1733848789501,20.0,206.27,206.16,1.6139659]
[1733848789700,15.0,206.22,206.17,0.8869241]
[1733848789901,15.0,206.24,206.17,0.8869241]
[1733848790304,15.0,206.22,206.17,0.8869241]
[1733848790503,15.0,206.2,206.11,1.1124924]
[1733848790701,15.0,206.25,206.11,1.1124924]
[1733848790903,15.0,206.38,206.11,1.1124924]
[1733848790904,0.42553192,206.19,206.13,43.58670281]
[1733848791229,0.42553192,206.19,206.17,43.58670281]
[1733848791394,15.0,206.34,206.18,0.72699799]
[1733848791597,15.0,206.36,206.19,43.58670281]
[1733848791798,17.95831811,206.38,206.23,43.58670281]
[1733848792023,15.0,206.35,206.24,0.72674625]
[1733848792208,15.0,206.31,206.2,0.72678806]
[1733848792429,15.0,206.27,206.16,0.72707453]
[1733848792604,15.0,206.22,206.14,0.72721181]
[1733848793142,15.0,206.21,206.11,1.11254212]
[1733848793306,15.0,206.18,206.11,1.11254212]
[1733848793511,35.0,206.15,206.11,0.3851552]
[1733848793704,15.0,206.12,206.11,0.3851552]
[1733848794735,15.0,206.17,206.11,0.3851552]
[1733848794909,3.634774,206.22,206.11,0.3851552]
[1733848794910,15.0,206.12,206.11,0.3851552]
[1733848795110,15.0,206.15,206.11,0.3851552]
[1733848795443,15.0,206.19,206.11,0.3851552]
[1733848795663,15.0,206.19,206.12,0.72744475]
[1733848795837,15.0,206.17,206.12,0.72744475]
[1733848796029,15.0,206.17,206.11,0.3851552]
[1733848796207,15.0,206.2,206.11,0.3851552]
[1733848796531,15.0,206.17,206.11,0.3851552]
[1733848796737,15.0,206.16,206.11,0.3851552]
[1733848796913,15.0,206.18,206.11,0.3851552]
[1733848797233,15.0,206.17,206.11,0.3851552]
[1733848797408,2.90794518,206.22,206.11,0.3851552]
[1733848797409,17.90794518,206.22,206.11,0.3851552]
[1733848797605,15.0,206.2,206.12,0.72734932]
[1733848797805,2.93690194,206.25,206.12,0.72734932]
[1733848797806,15.0,206.23,206.12,0.72734932]
[1733848798334,15.0,206.27,206.14,43.58670281]
[1733848798639,15.0,206.25,206.15,0.72710467]
[1733848798936,15.0,206.24,206.15,0.72710467]
[1733848799141,15.0,206.23,206.15,0.72710467]
[1733848799312,0.12549,206.27,206.15,0.72710467]
[1733848799313,15.0,206.24,206.15,0.72710467]
[1733848800050,15.0,206.29,206.17,43.58670281]
[1733848800227,15.0,206.29,206.19,43.58670281]
[1733848800419,15.0,206.33,206.2,0.72700267]
[1733848800628,15.0,206.32,206.2,0.72700267]
[1733848800836,15.0,206.34,206.2,0.72700267]
[1733848801135,15.0,206.33,206.2,0.72700267]
[1733848801331,15.0,206.31,206.2,0.72700267]
[1733848801543,15.0,206.27,206.2,0.72700267]
[1733848801750,15.0,206.29,206.21,0.7270917]
[1733848801965,15.0,206.21,206.11,1.11232232]
[1733848802256,15.12549,206.12,206.11,0.3851552]
[1733848802459,15.0,206.07,206.0,0.72777852]
[1733848802623,15.0,206.06,206.01,0.88761294]
[1733848802827,15.0,206.03,206.01,0.88761294]
[1733848803026,0.12549,206.02,206.01,0.88761294]
[1733848803659,15.0,206.1,206.01,0.88761294]
[1733848803818,35.0,206.07,206.01,0.88761294]
[1733848804021,15.0,206.07,206.01,0.88761294]
[1733848804243,15.0,206.09,206.02,0.72792346]
[1733848804450,17.89515554,206.12,206.02,0.72792346]
[1733848804643,15.0,206.14,206.02,0.72792346]
[1733848804958,15.0,206.09,206.02,0.72792346]
[1733848805453,8.0832,206.21,206.02,0.72792346]
[1733848805454,15.0,206.17,206.04,43.58670281]
[1733848805623,15.0,206.26,206.1,43.58670281]
[1733848805953,15.0,206.33,206.17,43.58670281]
[1733848806134,15.0,206.33,206.19,43.58670281]
[1733848806454,15.0,206.33,206.12,30.25098]
[1733848806455,17.93246725,206.33,206.21,43.58670281]
[1733848806751,15.0,206.33,206.22,0.72702086]
[1733848806959,15.0,206.23,206.14,0.72702086]
[1733848807160,15.0,206.28,206.15,43.58670281]